[Event "Titled Tuesday Blitz July 26 Early 2022"]
[White "Skliarov, Viktor"]
[Black "Vivekananthan, Anish"]
[WhiteFideId "14106736"]
[BlackFideId "2090775"]
[WhiteElo "2257"]
[BlackElo "2804"]
[Result "1-0"]
[Round "04"]
[TimeControl "180+1"]
[Date "2022.07.26"]
[WhiteClock "0:00:04"]
[BlackClock "0:00:01"]

1. e4 {[%clk 0:03:00]}  c6 {[%clk 0:02:59]} 2. d4 {[%clk 0:03:00]}  d5 {[%clk 0:02:59]} 3. e5 {[%clk 0:02:59]}  Bf5 {[%clk 0:02:59]} 4. Nf3 {[%clk 0:02:59]}  e6 {[%clk 0:02:59]} 5. Be2 {[%clk 0:02:59]}  c5 {[%clk 0:02:59]} 6. O-O {[%clk 0:02:53]}  Nc6 {[%clk 0:02:47]} 7. Be3 {[%clk 0:02:52]}  Qb6 {[%clk 0:02:46]} 8. Nc3 {[%clk 0:02:52]}  Qxb2 {[%clk 0:02:44]} 9. Qe1 {[%clk 0:02:52]}  cxd4 {[%clk 0:02:44]} 10. Bxd4 {[%clk 0:02:48]}  Nxd4 {[%clk 0:02:44]} 11. Nxd4 {[%clk 0:02:49]}  Bb4 {[%clk 0:02:44]} 12. Rb1 {[%clk 0:02:36]}  Bxc3 {[%clk 0:02:34]} 13. Rxb2 {[%clk 0:02:36]}  Bxe1 {[%clk 0:02:35]} 14. Rxe1 {[%clk 0:02:36]}  b6 {[%clk 0:02:29]} 15. Bb5+ {[%clk 0:02:09]}  Kf8 {[%clk 0:02:28]} 16. Nxf5 {[%clk 0:01:41]}  exf5 {[%clk 0:02:28]} 17. Re3 {[%clk 0:01:19]}  Ne7 {[%clk 0:01:51]} 18. Rc3 {[%clk 0:01:18]}  Ng6 {[%clk 0:01:45]} 19. Rc7 {[%clk 0:00:50]}  Nxe5 {[%clk 0:01:44]} 20. f4 {[%clk 0:00:50]}  Ng6 {[%clk 0:01:12]} 21. g3 {[%clk 0:00:47]}  Ne7 {[%clk 0:01:07]} 22. Rb3 {[%clk 0:00:29]}  a6 {[%clk 0:00:45]} 23. Re3 {[%clk 0:00:27]}  Ng8 {[%clk 0:00:24]} 24. Bc6 {[%clk 0:00:21]}  Rd8 {[%clk 0:00:23]} 25. Bxd5 {[%clk 0:00:21]}  Nh6 {[%clk 0:00:21]} 26. Bc4 {[%clk 0:00:12]}  b5 {[%clk 0:00:20]} 27. Bb3 {[%clk 0:00:11]}  g6 {[%clk 0:00:19]} 28. Ree7 {[%clk 0:00:11]}  Kg7 {[%clk 0:00:05]} 29. Bxf7 {[%clk 0:00:11]}  Ng4 {[%clk 0:00:04]} 30. Bd5+ {[%clk 0:00:08]}  Kh6 {[%clk 0:00:04]} 31. Bf3 {[%clk 0:00:08]}  Nf6 {[%clk 0:00:02]} 32. h3 {[%clk 0:00:08]}  Rhe8 {[%clk 0:00:02]} 33. g4 {[%clk 0:00:09]}  fxg4 {[%clk 0:00:03]} 34. hxg4 {[%clk 0:00:09]}  g5 {[%clk 0:00:03]} 35. f5 {[%clk 0:00:07]}  Rxe7 {[%clk 0:00:03]} 36. Rxe7 {[%clk 0:00:07]}  Rd2 {[%clk 0:00:03]} 37. Re6 {[%clk 0:00:07]}  Kg7 {[%clk 0:00:04]} 38. Rxa6 {[%clk 0:00:07]}  Rxc2 {[%clk 0:00:04]} 39. Ra7+ {[%clk 0:00:06]}  Kh6 {[%clk 0:00:05]} 40. Ra6 {[%clk 0:00:06]}  Kg7 {[%clk 0:00:05]} 41. Ra7+ {[%clk 0:00:07]}  Kf8 {[%clk 0:00:05]} 42. Rb7 {[%clk 0:00:05]}  Rxa2 {[%clk 0:00:03]} 43. Rxb5 {[%clk 0:00:06]}  Ra3 {[%clk 0:00:04]} 44. Rb8+ {[%clk 0:00:06]}  Ke7 {[%clk 0:00:03]} 45. Rb7+ {[%clk 0:00:06]}  Kd6 {[%clk 0:00:03]} 46. Kf2 {[%clk 0:00:06]}  h5 {[%clk 0:00:02]} 47. gxh5 {[%clk 0:00:06]}  g4 {[%clk 0:00:03]} 48. Bg2 {[%clk 0:00:04]}  Ke5 {[%clk 0:00:03]} 49. Rb5+ {[%clk 0:00:03]}  Kf4 {[%clk 0:00:03]} 50. Rb4+ {[%clk 0:00:03]}  Kxf5 {[%clk 0:00:03]} 51. h6 {[%clk 0:00:03]}  Ra2+ {[%clk 0:00:03]} 52. Kf1 {[%clk 0:00:02]}  Kg6 {[%clk 0:00:02]} 53. Rb6 {[%clk 0:00:02]}  Ra1+ {[%clk 0:00:01]} 54. Kf2 {[%clk 0:00:02]}  Ra2+ {[%clk 0:00:02]} 55. Kg3 {[%clk 0:00:03]}  Kg5 {[%clk 0:00:02]} 56. h7 {[%clk 0:00:01]}  Nh5+ {[%clk 0:00:03]} 57. Kh2 {[%clk 0:00:02]}  g3+ {[%clk 0:00:02]} 58. Kg1 {[%clk 0:00:02]}  Ra1+ {[%clk 0:00:02]} 59. Bf1 {[%clk 0:00:03]}  Ra8 {[%clk 0:00:01]} 60. Rb7 {[%clk 0:00:03]}  Rh8 {[%clk 0:00:02]} 61. Bd3 {[%clk 0:00:03]}  Nf4 {[%clk 0:00:02]} 62. Be4 {[%clk 0:00:03]}  Kg4 {[%clk 0:00:02]} 63. Rg7+ {[%clk 0:00:03]}  Kh4 {[%clk 0:00:01]} 64. Rg8 {[%clk 0:00:04]}  Nh3+ {[%clk 0:00:01]} 65. Kf1 {[%clk 0:00:04]} 1-0


[Site "https://www.chess.com"]

[Event "Titled Tuesday Blitz July 26 Early 2022"]
[White "Tatarinov, Dmitry"]
[Black "Sarana, Alexey"]
[WhiteFideId "24160067"]
[BlackFideId "24133795"]
[WhiteElo "2302"]
[BlackElo "2666"]
[Result "0-1"]
[Round "04"]
[TimeControl "180+1"]
[Date "2022.07.26"]
[WhiteClock "0:00:53"]
[BlackClock "0:01:55"]

1. d4 {[%clk 0:02:52]}  Nf6 {[%clk 0:02:59]} 2. c4 {[%clk 0:02:51]}  e6 {[%clk 0:03:00]} 3. Nf3 {[%clk 0:02:52]}  d5 {[%clk 0:03:00]} 4. g3 {[%clk 0:02:52]}  dxc4 {[%clk 0:02:58]} 5. Bg2 {[%clk 0:02:47]}  c6 {[%clk 0:02:58]} 6. O-O {[%clk 0:02:43]}  b5 {[%clk 0:02:57]} 7. Nc3 {[%clk 0:02:42]}  Bb7 {[%clk 0:02:56]} 8. a3 {[%clk 0:02:34]}  Nbd7 {[%clk 0:02:55]} 9. e4 {[%clk 0:02:34]}  a6 {[%clk 0:02:52]} 10. Re1 {[%clk 0:02:35]}  Be7 {[%clk 0:02:51]} 11. Bf4 {[%clk 0:02:34]}  O-O {[%clk 0:02:49]} 12. Qc2 {[%clk 0:02:24]}  c5 {[%clk 0:02:47]} 13. d5 {[%clk 0:02:02]}  exd5 {[%clk 0:02:47]} 14. exd5 {[%clk 0:02:03]}  Re8 {[%clk 0:02:46]} 15. Rad1 {[%clk 0:02:03]}  Bf8 {[%clk 0:02:45]} 16. Ng5 {[%clk 0:01:47]}  h6 {[%clk 0:02:17]} 17. Nge4 {[%clk 0:01:45]}  Qb6 {[%clk 0:02:03]} 18. h4 {[%clk 0:01:28]}  Rad8 {[%clk 0:02:02]} 19. Nxf6+ {[%clk 0:01:18]}  Nxf6 {[%clk 0:02:01]} 20. Rxe8 {[%clk 0:01:12]}  Rxe8 {[%clk 0:02:00]} 21. Qf5 {[%clk 0:00:56]}  b4 {[%clk 0:01:55]} 22. Ne4 {[%clk 0:00:53]}  Nxe4 {[%clk 0:01:55]} 23. Bxe4 {[%clk 0:00:53]}  g6 {[%clk 0:01:55]} 0-1


[Site "https://www.chess.com"]

[Event "Titled Tuesday Blitz July 26 Early 2022"]
[White "Timofeev, Artyom"]
[Black "Taboas Rodriguez, Daniel"]
[WhiteFideId "4140419"]
[BlackFideId "2208466"]
[WhiteElo "2578"]
[BlackElo "2429"]
[Result "1-0"]
[Round "04"]
[TimeControl "180+1"]
[Date "2022.07.26"]
[WhiteClock "0:02:26"]
[BlackClock "0:02:01"]

1. e4 {[%clk 0:03:00]}  e5 {[%clk 0:03:00]} 2. Nf3 {[%clk 0:03:00]}  Nc6 {[%clk 0:03:00]} 3. Bb5 {[%clk 0:02:59]}  Nf6 {[%clk 0:03:00]} 4. O-O {[%clk 0:02:58]}  Nxe4 {[%clk 0:03:00]} 5. d4 {[%clk 0:02:58]}  Nd6 {[%clk 0:03:00]} 6. Bxc6 {[%clk 0:02:58]}  dxc6 {[%clk 0:03:01]} 7. dxe5 {[%clk 0:02:59]}  Nf5 {[%clk 0:03:02]} 8. Qxd8+ {[%clk 0:02:59]}  Kxd8 {[%clk 0:03:03]} 9. Nc3 {[%clk 0:02:59]}  Bd7 {[%clk 0:03:03]} 10. h3 {[%clk 0:02:59]}  Kc8 {[%clk 0:03:03]} 11. g4 {[%clk 0:02:55]}  Ne7 {[%clk 0:02:59]} 12. Kg2 {[%clk 0:02:54]}  h6 {[%clk 0:02:55]} 13. Bf4 {[%clk 0:02:51]}  Nd5 {[%clk 0:02:53]} 14. Bd2 {[%clk 0:02:51]}  Nxc3 {[%clk 0:02:43]} 15. Bxc3 {[%clk 0:02:50]}  Be6 {[%clk 0:02:43]} 16. Nd4 {[%clk 0:02:49]}  Bc5 {[%clk 0:02:43]} 17. Nxe6 {[%clk 0:02:48]}  fxe6 {[%clk 0:02:43]} 18. f4 {[%clk 0:02:48]}  g6 {[%clk 0:02:38]} 19. Rad1 {[%clk 0:02:36]}  Rf8 {[%clk 0:02:29]} 20. Kf3 {[%clk 0:02:33]}  Be7 {[%clk 0:02:22]} 21. Ke4 {[%clk 0:02:33]}  b6 {[%clk 0:02:08]} 22. f5 {[%clk 0:02:32]}  gxf5+ {[%clk 0:02:08]} 23. gxf5 {[%clk 0:02:32]}  exf5+ {[%clk 0:02:09]} 24. Rxf5 {[%clk 0:02:31]}  Kb7 {[%clk 0:02:09]} 25. Rd7 {[%clk 0:02:29]}  Rae8 {[%clk 0:02:01]} 26. Rxe7 {[%clk 0:02:26]} 1-0


[Site "https://www.chess.com"]

[Event "Titled Tuesday Blitz July 26 Early 2022"]
[White "Vakhlamov, Igor L."]
[Black "Dubov, Daniil"]
[WhiteFideId "24126748"]
[BlackFideId "24126055"]
[WhiteElo "2401"]
[BlackElo "2791"]
[Result "1/2-1/2"]
[Round "04"]
[TimeControl "180+1"]
[Date "2022.07.26"]
[WhiteClock "0:00:38"]
[BlackClock "0:00:09"]

1. e4 {[%clk 0:03:00]}  e5 {[%clk 0:02:59]} 2. Nf3 {[%clk 0:03:00]}  Nc6 {[%clk 0:03:00]} 3. Nc3 {[%clk 0:03:00]}  Nf6 {[%clk 0:03:00]} 4. Bb5 {[%clk 0:03:00]}  Bd6 {[%clk 0:02:58]} 5. a3 {[%clk 0:02:56]}  O-O {[%clk 0:02:57]} 6. d3 {[%clk 0:02:56]}  Re8 {[%clk 0:02:52]} 7. Bc4 {[%clk 0:02:55]}  h6 {[%clk 0:02:50]} 8. g4 {[%clk 0:02:55]}  b5 {[%clk 0:02:15]} 9. Nxb5 {[%clk 0:02:50]}  Bf8 {[%clk 0:02:15]} 10. g5 {[%clk 0:02:49]}  d5 {[%clk 0:02:15]} 11. exd5 {[%clk 0:02:37]}  e4 {[%clk 0:02:03]} 12. gxf6 {[%clk 0:02:25]}  Bg4 {[%clk 0:02:01]} 13. dxe4 {[%clk 0:02:17]}  Rxe4+ {[%clk 0:02:00]} 14. Be3 {[%clk 0:02:05]}  Rxc4 {[%clk 0:01:59]} 15. fxg7 {[%clk 0:01:59]}  Bc5 {[%clk 0:01:49]} 16. dxc6 {[%clk 0:01:50]}  Qxd1+ {[%clk 0:01:42]} 17. Rxd1 {[%clk 0:01:51]}  Bxf3 {[%clk 0:01:43]} 18. Nxc7 {[%clk 0:01:14]}  Rc8 {[%clk 0:00:55]} 19. Nd5 {[%clk 0:01:13]}  Bxh1 {[%clk 0:00:41]} 20. Bxc5 {[%clk 0:01:13]}  Re8+ {[%clk 0:00:31]} 21. Be3 {[%clk 0:01:05]}  Rxc6 {[%clk 0:00:29]} 22. c4 {[%clk 0:00:58]}  Kxg7 {[%clk 0:00:27]} 23. Rd4 {[%clk 0:00:57]}  Re4 {[%clk 0:00:24]} 24. Rxe4 {[%clk 0:00:57]}  Bxe4 {[%clk 0:00:23]} 25. Bxa7 {[%clk 0:00:57]}  Rxc4 {[%clk 0:00:22]} 26. Nc3 {[%clk 0:00:55]}  Bc6 {[%clk 0:00:20]} 27. Ke2 {[%clk 0:00:48]}  Kf6 {[%clk 0:00:18]} 28. Kd3 {[%clk 0:00:45]}  Rh4 {[%clk 0:00:18]} 29. Bb8 {[%clk 0:00:45]}  Ke6 {[%clk 0:00:18]} 30. b4 {[%clk 0:00:38]}  f5 {[%clk 0:00:16]} 31. b5 {[%clk 0:00:35]}  Bd7 {[%clk 0:00:16]} 32. a4 {[%clk 0:00:35]}  Rxa4 {[%clk 0:00:10]} 33. Nxa4 {[%clk 0:00:33]}  Bxb5+ {[%clk 0:00:10]} 34. Ke3 {[%clk 0:00:33]}  Bxa4 {[%clk 0:00:11]} 35. Bf4 {[%clk 0:00:34]}  h5 {[%clk 0:00:10]} 36. h4 {[%clk 0:00:34]}  Be8 {[%clk 0:00:09]} 37. Bg5 {[%clk 0:00:35]}  Ba4 {[%clk 0:00:09]} 38. Bf4 {[%clk 0:00:36]}  Bd1 {[%clk 0:00:09]} 39. Bg5 {[%clk 0:00:37]}  Ba4 {[%clk 0:00:09]} 40. Bf4 {[%clk 0:00:38]} 1/2-1/2


[Site "https://www.chess.com"]

[Event "Titled Tuesday Blitz July 26 Early 2022"]
[White "Wieczorek, Oskar"]
[Black "Ronka, Erik"]
[WhiteFideId "1133950"]
[BlackFideId "505080"]
[WhiteElo "2330"]
[BlackElo "2264"]
[Result "0-1"]
[Round "04"]
[TimeControl "180+1"]
[Date "2022.07.27"]
[WhiteClock "0:00:01"]
[BlackClock "0:00:20"]

1. e4 {[%clk 0:03:00]}  c5 {[%clk 0:03:00]} 2. Nf3 {[%clk 0:03:01]}  e6 {[%clk 0:03:00]} 3. b3 {[%clk 0:03:00]}  a6 {[%clk 0:02:59]} 4. Bb2 {[%clk 0:02:56]}  Nc6 {[%clk 0:03:00]} 5. c4 {[%clk 0:02:54]}  Nf6 {[%clk 0:03:00]} 6. Nc3 {[%clk 0:02:53]}  d5 {[%clk 0:02:50]} 7. cxd5 {[%clk 0:02:26]}  exd5 {[%clk 0:02:51]} 8. exd5 {[%clk 0:02:26]}  Nxd5 {[%clk 0:02:49]} 9. Nxd5 {[%clk 0:02:13]}  Qxd5 {[%clk 0:02:49]} 10. Bc4 {[%clk 0:02:14]}  Qh5 {[%clk 0:02:45]} 11. O-O {[%clk 0:02:11]}  Bg4 {[%clk 0:02:44]} 12. Re1+ {[%clk 0:02:08]}  Be7 {[%clk 0:02:44]} 13. d4 {[%clk 0:01:40]}  Bxf3 {[%clk 0:02:03]} 14. Qxf3 {[%clk 0:01:41]}  Qxf3 {[%clk 0:02:04]} 15. gxf3 {[%clk 0:01:41]}  Nxd4 {[%clk 0:02:04]} 16. Bxd4 {[%clk 0:01:37]}  cxd4 {[%clk 0:02:05]} 17. Bd5 {[%clk 0:01:32]}  Ra7 {[%clk 0:01:48]} 18. Rac1 {[%clk 0:01:25]}  Kd8 {[%clk 0:01:35]} 19. Bxf7 {[%clk 0:01:18]}  b5 {[%clk 0:01:24]} 20. Rc6 {[%clk 0:01:03]}  Kd7 {[%clk 0:01:11]} 21. Rce6 {[%clk 0:00:48]}  Bf6 {[%clk 0:01:11]} 22. Be8+ {[%clk 0:00:39]}  Kd8 {[%clk 0:01:04]} 23. a4 {[%clk 0:00:34]}  bxa4 {[%clk 0:01:00]} 24. bxa4 {[%clk 0:00:35]}  Re7 {[%clk 0:00:59]} 25. Rxe7 {[%clk 0:00:35]}  Bxe7 {[%clk 0:00:59]} 26. Bf7 {[%clk 0:00:32]}  Kd7 {[%clk 0:00:53]} 27. Bc4 {[%clk 0:00:31]}  a5 {[%clk 0:00:50]} 28. Bd3 {[%clk 0:00:25]}  Rb8 {[%clk 0:00:46]} 29. Bxh7 {[%clk 0:00:22]}  Rb4 {[%clk 0:00:44]} 30. Bd3 {[%clk 0:00:22]}  Kd6 {[%clk 0:00:40]} 31. Bb5 {[%clk 0:00:22]}  Bf6 {[%clk 0:00:39]} 32. Rc1 {[%clk 0:00:17]}  Ke5 {[%clk 0:00:29]} 33. Rc5+ {[%clk 0:00:11]}  Kf4 {[%clk 0:00:29]} 34. Kg2 {[%clk 0:00:11]}  Be5 {[%clk 0:00:29]} 35. Rc8 {[%clk 0:00:07]}  Rb3 {[%clk 0:00:27]} 36. Rf8+ {[%clk 0:00:07]}  Bf6 {[%clk 0:00:26]} 37. h4 {[%clk 0:00:07]}  d3 {[%clk 0:00:26]} 38. Rf7 {[%clk 0:00:04]}  d2 {[%clk 0:00:21]} 39. Rd7 {[%clk 0:00:05]}  Bc3 {[%clk 0:00:22]} 40. Rd3 {[%clk 0:00:03]}  Rb1 {[%clk 0:00:21]} 41. Rxc3 {[%clk 0:00:01]}  d1=Q {[%clk 0:00:21]} 42. Rc4+ {[%clk 0:00:01]}  Ke5 {[%clk 0:00:21]} 43. Re4+ {[%clk 0:00:01]}  Kf6 {[%clk 0:00:21]} 44. Rf4+ {[%clk 0:00:01]}  Ke7 {[%clk 0:00:20]} 45. Re4+ {[%clk 0:00:01]}  Kd6 {[%clk 0:00:20]} 0-1


[Site "https://www.chess.com"]

[Event "Titled Tuesday Blitz July 26 Early 2022"]
[White "Yaniuk, Volodymyr"]
[Black "Peiris, T G M"]
[WhiteFideId "14133083"]
[BlackFideId "9901310"]
[WhiteElo "2141"]
[BlackElo "2022"]
[Result "1-0"]
[Round "04"]
[TimeControl "180+1"]
[Date "2022.07.27"]
[WhiteClock "0:00:06"]
[BlackClock "0:00:10"]

1. d4 {[%clk 0:02:56]}  Nf6 {[%clk 0:02:58]} 2. Bf4 {[%clk 0:02:55]}  e6 {[%clk 0:02:57]} 3. e3 {[%clk 0:02:55]}  b6 {[%clk 0:02:57]} 4. Nf3 {[%clk 0:02:54]}  Bb7 {[%clk 0:02:57]} 5. Be2 {[%clk 0:02:55]}  Be7 {[%clk 0:02:56]} 6. O-O {[%clk 0:02:55]}  O-O {[%clk 0:02:57]} 7. h3 {[%clk 0:02:55]}  d6 {[%clk 0:02:56]} 8. c4 {[%clk 0:02:53]}  Nbd7 {[%clk 0:02:55]} 9. Nc3 {[%clk 0:02:53]}  a6 {[%clk 0:02:55]} 10. Qc2 {[%clk 0:02:51]}  Re8 {[%clk 0:02:55]} 11. Rfd1 {[%clk 0:02:51]}  Nf8 {[%clk 0:02:55]} 12. e4 {[%clk 0:02:50]}  Ng6 {[%clk 0:02:54]} 13. Bh2 {[%clk 0:02:50]}  Qc8 {[%clk 0:02:45]} 14. e5 {[%clk 0:02:49]}  Nd7 {[%clk 0:02:44]} 15. Ne4 {[%clk 0:02:41]}  dxe5 {[%clk 0:02:24]} 16. dxe5 {[%clk 0:02:41]}  Bc6 {[%clk 0:02:22]} 17. Nd4 {[%clk 0:02:22]}  Bb7 {[%clk 0:02:14]} 18. f4 {[%clk 0:02:14]}  Nc5 {[%clk 0:02:11]} 19. Nc3 {[%clk 0:02:05]}  a5 {[%clk 0:02:04]} 20. Kh1 {[%clk 0:02:02]}  Kh8 {[%clk 0:01:54]} 21. Rd2 {[%clk 0:01:59]}  f6 {[%clk 0:01:54]} 22. Bh5 {[%clk 0:01:56]}  f5 {[%clk 0:01:47]} 23. Bf3 {[%clk 0:01:44]}  Rd8 {[%clk 0:01:42]} 24. Nc6 {[%clk 0:01:40]}  Rxd2 {[%clk 0:01:38]} 25. Qxd2 {[%clk 0:01:41]}  Bf8 {[%clk 0:01:29]} 26. Rd1 {[%clk 0:01:34]}  Nh4 {[%clk 0:01:28]} 27. Nd4 {[%clk 0:01:16]}  Nxf3 {[%clk 0:01:26]} 28. Nxf3 {[%clk 0:01:17]}  Ne4 {[%clk 0:01:24]} 29. Nxe4 {[%clk 0:01:14]}  Bxe4 {[%clk 0:01:25]} 30. Ng5 {[%clk 0:01:14]}  Bc6 {[%clk 0:01:22]} 31. Bg1 {[%clk 0:00:56]}  h6 {[%clk 0:01:18]} 32. Nf3 {[%clk 0:00:50]}  Qb7 {[%clk 0:01:18]} 33. Qf2 {[%clk 0:00:42]}  Be7 {[%clk 0:01:12]} 34. Nd4 {[%clk 0:00:37]}  Be4 {[%clk 0:01:10]} 35. Nxe6 {[%clk 0:00:34]}  Qc6 {[%clk 0:01:05]} 36. Nd4 {[%clk 0:00:28]}  Qxc4 {[%clk 0:01:03]} 37. Nf3 {[%clk 0:00:25]}  Rd8 {[%clk 0:00:55]} 38. Rxd8+ {[%clk 0:00:20]}  Bxd8 {[%clk 0:00:55]} 39. Qd4 {[%clk 0:00:21]}  Qg8 {[%clk 0:00:49]} 40. b3 {[%clk 0:00:20]}  Be7 {[%clk 0:00:50]} 41. Nd2 {[%clk 0:00:19]}  Bb7 {[%clk 0:00:47]} 42. Kh2 {[%clk 0:00:18]}  Qe6 {[%clk 0:00:45]} 43. Nf3 {[%clk 0:00:16]}  Qg6 {[%clk 0:00:41]} 44. Qd7 {[%clk 0:00:14]}  Bxf3 {[%clk 0:00:30]} 45. gxf3 {[%clk 0:00:07]}  Bh4 {[%clk 0:00:30]} 46. Kh1 {[%clk 0:00:07]}  Qg3 {[%clk 0:00:29]} 47. Qc8+ {[%clk 0:00:06]}  Kh7 {[%clk 0:00:26]} 48. Qxf5+ {[%clk 0:00:06]}  Kg8 {[%clk 0:00:25]} 49. Qe6+ {[%clk 0:00:06]}  Kh8 {[%clk 0:00:24]} 50. Qg4 {[%clk 0:00:06]}  Qe1 {[%clk 0:00:23]} 51. e6 {[%clk 0:00:06]}  Bf6 {[%clk 0:00:21]} 52. f5 {[%clk 0:00:06]}  Kg8 {[%clk 0:00:21]} 53. Kg2 {[%clk 0:00:06]}  Qd2+ {[%clk 0:00:20]} 54. Kh1 {[%clk 0:00:06]}  Qxa2 {[%clk 0:00:20]} 55. Qc4 {[%clk 0:00:06]}  Qa3 {[%clk 0:00:14]} 56. e7+ {[%clk 0:00:06]}  Kh7 {[%clk 0:00:13]} 57. e8=Q {[%clk 0:00:06]}  Qb2 {[%clk 0:00:12]} 58. Qg6+ {[%clk 0:00:07]}  Kh8 {[%clk 0:00:11]} 59. Qcf7 {[%clk 0:00:07]}  Qa3 {[%clk 0:00:10]} 60. Qe8+ {[%clk 0:00:06]} 1-0


[Site "https://www.chess.com"]

[Event "Titled Tuesday Blitz July 26 Early 2022"]
[White "Yeremyan, Alen"]
[Black "Rios Escobar, Adan"]
[WhiteFideId "13308998"]
[BlackFideId "3403645"]
[WhiteElo "2158"]
[BlackElo "2418"]
[Result "1-0"]
[Round "04"]
[TimeControl "180+1"]
[Date "2022.07.27"]
[WhiteClock "0:00:17"]
[BlackClock "0:00:06"]

1. e4 {[%clk 0:03:00]}  c5 {[%clk 0:02:59]} 2. Nc3 {[%clk 0:02:59]}  d6 {[%clk 0:02:59]} 3. Nge2 {[%clk 0:02:56]}  g6 {[%clk 0:02:57]} 4. d4 {[%clk 0:02:56]}  cxd4 {[%clk 0:02:48]} 5. Qxd4 {[%clk 0:02:56]}  Nf6 {[%clk 0:02:47]} 6. b3 {[%clk 0:02:56]}  Nc6 {[%clk 0:02:46]} 7. Qd2 {[%clk 0:02:55]}  h5 {[%clk 0:02:38]} 8. Bb2 {[%clk 0:02:52]}  Bh6 {[%clk 0:02:34]} 9. f4 {[%clk 0:02:52]}  O-O {[%clk 0:02:31]} 10. O-O-O {[%clk 0:02:45]}  e5 {[%clk 0:02:27]} 11. g3 {[%clk 0:02:27]}  Bg4 {[%clk 0:02:19]} 12. Bg2 {[%clk 0:02:10]}  Nd4 {[%clk 0:02:17]} 13. Rhf1 {[%clk 0:01:55]}  Rc8 {[%clk 0:02:13]} 14. Nxd4 {[%clk 0:01:49]}  Bxd1 {[%clk 0:02:05]} 15. Rxd1 {[%clk 0:01:50]}  exd4 {[%clk 0:02:02]} 16. Qxd4 {[%clk 0:01:51]}  Bg7 {[%clk 0:01:52]} 17. Qxd6 {[%clk 0:01:50]}  Qxd6 {[%clk 0:01:46]} 18. Rxd6 {[%clk 0:01:51]}  Ne8 {[%clk 0:01:39]} 19. Rd3 {[%clk 0:01:49]}  Nc7 {[%clk 0:01:21]} 20. e5 {[%clk 0:01:49]}  b6 {[%clk 0:01:08]} 21. Ne4 {[%clk 0:01:50]}  Ne6 {[%clk 0:01:04]} 22. Rd7 {[%clk 0:01:46]}  Rc7 {[%clk 0:00:59]} 23. Rd2 {[%clk 0:01:35]}  Nc5 {[%clk 0:00:50]} 24. Nxc5 {[%clk 0:01:23]}  bxc5 {[%clk 0:00:48]} 25. c4 {[%clk 0:01:22]}  f6 {[%clk 0:00:42]} 26. Bd5+ {[%clk 0:01:15]}  Kh7 {[%clk 0:00:40]} 27. e6 {[%clk 0:01:15]}  f5 {[%clk 0:00:33]} 28. Ba3 {[%clk 0:01:13]}  Re8 {[%clk 0:00:24]} 29. Kc2 {[%clk 0:01:11]}  Bf8 {[%clk 0:00:19]} 30. Bb2 {[%clk 0:01:10]}  Bg7 {[%clk 0:00:20]} 31. Ba3 {[%clk 0:01:10]}  Bf6 {[%clk 0:00:20]} 32. Re2 {[%clk 0:01:08]}  Kg7 {[%clk 0:00:19]} 33. Kd3 {[%clk 0:01:06]}  Kf8 {[%clk 0:00:19]} 34. Re1 {[%clk 0:01:00]}  a5 {[%clk 0:00:19]} 35. h3 {[%clk 0:00:56]}  Ke7 {[%clk 0:00:19]} 36. g4 {[%clk 0:00:56]}  hxg4 {[%clk 0:00:19]} 37. hxg4 {[%clk 0:00:56]}  Rh8 {[%clk 0:00:19]} 38. gxf5 {[%clk 0:00:49]}  gxf5 {[%clk 0:00:20]} 39. Re2 {[%clk 0:00:44]}  Rh3+ {[%clk 0:00:18]} 40. Kd2 {[%clk 0:00:45]}  Bd4 {[%clk 0:00:14]} 41. Kd1 {[%clk 0:00:36]}  Kd6 {[%clk 0:00:12]} 42. Bc1 {[%clk 0:00:35]}  Rg7 {[%clk 0:00:11]} 43. Bd2 {[%clk 0:00:35]}  Rh1+ {[%clk 0:00:07]} 44. Kc2 {[%clk 0:00:36]}  Rh3 {[%clk 0:00:08]} 45. Kd1 {[%clk 0:00:35]}  Rh4 {[%clk 0:00:07]} 46. Bxa5 {[%clk 0:00:31]}  Rxf4 {[%clk 0:00:06]} 47. Bd8 {[%clk 0:00:32]}  Rf1+ {[%clk 0:00:06]} 48. Kd2 {[%clk 0:00:26]}  Rgg1 {[%clk 0:00:06]} 49. b4 {[%clk 0:00:05]}  Rd1+ {[%clk 0:00:04]} 50. Kc2 {[%clk 0:00:06]}  Rb1 {[%clk 0:00:03]} 51. bxc5+ {[%clk 0:00:05]}  Kxc5 {[%clk 0:00:03]} 52. Be7+ {[%clk 0:00:05]}  Kb6 {[%clk 0:00:04]} 53. Ba3 {[%clk 0:00:05]}  Rge1 {[%clk 0:00:02]} 54. Rxe1 {[%clk 0:00:04]}  Rxe1 {[%clk 0:00:03]} 55. e7 {[%clk 0:00:04]}  Bf6 {[%clk 0:00:02]} 56. Kd2 {[%clk 0:00:05]}  Re5 {[%clk 0:00:02]} 57. Bb2 {[%clk 0:00:05]}  Rxe7 {[%clk 0:00:01]} 58. Bxf6 {[%clk 0:00:06]}  Rd7 {[%clk 0:00:02]} 59. Bd4+ {[%clk 0:00:07]}  Kc7 {[%clk 0:00:02]} 60. Kc3 {[%clk 0:00:07]}  Kd6 {[%clk 0:00:02]} 61. a4 {[%clk 0:00:08]}  Rc7 {[%clk 0:00:02]} 62. a5 {[%clk 0:00:09]}  f4 {[%clk 0:00:03]} 63. a6 {[%clk 0:00:09]}  Rc8 {[%clk 0:00:01]} 64. a7 {[%clk 0:00:10]}  Kc7 {[%clk 0:00:01]} 65. a8=Q {[%clk 0:00:10]}  Rxa8 {[%clk 0:00:02]} 66. Bxa8 {[%clk 0:00:11]}  Kd6 {[%clk 0:00:02]} 67. Bf3 {[%clk 0:00:12]}  Ke6 {[%clk 0:00:03]} 68. Kd3 {[%clk 0:00:13]}  Kf5 {[%clk 0:00:04]} 69. c5 {[%clk 0:00:13]}  Ke6 {[%clk 0:00:04]} 70. c6 {[%clk 0:00:14]}  Kd6 {[%clk 0:00:05]} 71. Ke4 {[%clk 0:00:14]}  Kc7 {[%clk 0:00:06]} 72. Kxf4 {[%clk 0:00:14]}  Kd6 {[%clk 0:00:06]} 73. Be5+ {[%clk 0:00:15]}  Ke6 {[%clk 0:00:05]} 74. c7 {[%clk 0:00:16]}  Kd7 {[%clk 0:00:06]} 75. Bb7 {[%clk 0:00:14]}  Ke7 {[%clk 0:00:05]} 76. c8=Q {[%clk 0:00:15]}  Kf7 {[%clk 0:00:05]} 77. Bd5+ {[%clk 0:00:16]}  Kg6 {[%clk 0:00:06]} 78. Qf5+ {[%clk 0:00:16]}  Kh6 {[%clk 0:00:06]} 79. Qg5+ {[%clk 0:00:16]}  Kh7 {[%clk 0:00:06]} 80. Qg7# {[%clk 0:00:17]} 1-0


[Site "https://www.chess.com"]

[Event "Titled Tuesday Blitz July 26 Early 2022"]
[White "Yuan, Qingyu"]
[Black "Bekturov, Tamerlan"]
[WhiteFideId "8609772"]
[BlackFideId "13710184"]
[WhiteElo "2359"]
[BlackElo "2128"]
[Result "1-0"]
[Round "04"]
[TimeControl "180+1"]
[Date "2022.07.26"]
[WhiteClock "0:01:12"]
[BlackClock "0:00:11"]

1. e4 {[%clk 0:03:00]}  e5 {[%clk 0:02:54]} 2. Nf3 {[%clk 0:03:00]}  Nc6 {[%clk 0:02:55]} 3. Bc4 {[%clk 0:03:01]}  Nf6 {[%clk 0:02:54]} 4. d3 {[%clk 0:03:01]}  Bc5 {[%clk 0:02:54]} 5. Bg5 {[%clk 0:03:01]}  h6 {[%clk 0:02:53]} 6. Bh4 {[%clk 0:03:02]}  d6 {[%clk 0:02:53]} 7. c3 {[%clk 0:03:01]}  a6 {[%clk 0:02:48]} 8. Nbd2 {[%clk 0:03:00]}  Ba7 {[%clk 0:02:47]} 9. a4 {[%clk 0:03:00]}  g5 {[%clk 0:02:42]} 10. Bg3 {[%clk 0:03:00]}  Qe7 {[%clk 0:02:38]} 11. b4 {[%clk 0:02:59]}  Rg8 {[%clk 0:02:29]} 12. Rb1 {[%clk 0:02:52]}  Nd8 {[%clk 0:01:43]} 13. O-O {[%clk 0:02:17]}  Be6 {[%clk 0:01:35]} 14. Kh1 {[%clk 0:02:15]}  Bxc4 {[%clk 0:01:33]} 15. Nxc4 {[%clk 0:02:15]}  Ne6 {[%clk 0:01:07]} 16. b5 {[%clk 0:02:00]}  Nd7 {[%clk 0:00:35]} 17. d4 {[%clk 0:01:52]}  f6 {[%clk 0:00:28]} 18. bxa6 {[%clk 0:01:44]}  bxa6 {[%clk 0:00:25]} 19. Ne3 {[%clk 0:01:44]}  h5 {[%clk 0:00:20]} 20. h4 {[%clk 0:01:35]}  g4 {[%clk 0:00:17]} 21. Nf5 {[%clk 0:01:27]}  Qd8 {[%clk 0:00:13]} 22. Ne1 {[%clk 0:01:20]}  Ndf8 {[%clk 0:00:11]} 23. Nc2 {[%clk 0:01:12]} 1-0


[Site "https://www.chess.com"]